Cogmind - Beta 14 @@@ ROGUE MODE // 2024.08.27 @ 02:51:27 Player: omnishade Result: Destroyed by YI-UF0 with YI-UF0's Doublenader Performance ------------- Evolutions (0) 0 Regions Visited (2) 400 Robots Destroyed (5) 25 Value Destroyed (111) 111 Prototype IDs (0) 0 Alien Tech Used (0) 0 Bonus (0) 0 TOTAL SCORE: 536 Bonus ------- None Cogmind --------- Core Integrity 0/250 Matter 276/300 Energy 160/160 System Corruption 0% Temperature Cool (6) Movement Rolling (80) Location -10/Mines Parts ------- > --- POWER (1) -------- Light Nuclear Core > --- PROPULSION (2) --- Wheel Wheel > --- UTILITY (2) ------ Heat Sink > --- WEAPON (2) ------- Medium Laser > --- INVENTORY (5) ---- Light Ion Engine Wheel Mining Laser Peak State ------------ > --- POWER ------------ Light Nuclear Core > --- PROPULSION ------- Aluminum Leg Aluminum Leg > --- UTILITY ---------- Heat Sink > --- WEAPON ----------- Medium Laser Medium Laser > --- INVENTORY -------- Light Ion Engine Wheel Wheel Medium Laser Mining Laser [Rating: 8] Favorites ----------- Power Light Nuclear Core Engine Light Ion Engine Power Core Light Nuclear Core Propulsion Aluminum Leg Leg Aluminum Leg Wheel Wheel Utility Heat Sink Device Heat Sink Weapon Medium Laser Energy Gun Medium Laser Build | -11 -10 -10 ------- Run | Yrd Mat Min Slots Evolved . | . . . Power . | . . . Propulsion . | . . . Utility . | . . . Weapon . | . . . Parts Attached 11 | 5 . 6 Power 2 | 1 . 1 Engine 1 | 1 . . Core 1 | . . 1 Reactor . | . . . Propulsion 5 | 2 . 3 Treads . | . . . Leg 2 | 2 . . Wheel 3 | . . 3 Hover . | . . . Flight . | . . . Utility 1 | . . 1 Device 1 | . . 1 Storage . | . . . Processor . | . . . Hackware . | . . . Protection . | . . . Artifact . | . . . Weapon 3 | 2 . 1 Energy Gun 3 | 2 . 1 Energy Cannon . | . . . Ballistic Gun . | . . . Ballistic Cannon . | . . . Launcher . | . . . Special Weapon . | . . . Impact Weapon . | . . . Slashing Weapon . | . . . Piercing Weapon . | . . . Special Melee Weapon . | . . . Unidentified Prototypes . | . . . Parts Lost 4 | . . 4 Power . | . . . Propulsion 2 | . . 2 Utility . | . . . Weapon 2 | . . 2 Highest Loss Streak 3 | . . 3 To Critical Strikes . | . . . Average Slot Usage (%) 74 | . 71 75 Engine 5 | . 14 4 Core 8 | . . 9 Leg 18 | . 28 17 Wheel 8 | . . 10 Device 5 | . . 5 Energy Gun 27 | . 28 27 Peak Build Rating 8 | 5 5 8 Average Rating 5 | 4 5 6 On Entrance 3 | . 5 5 Naked Turns . | . . . Heaviest Build 10 | 7 7 10 Greatest Support 20 | 20 20 20 Greatest Overweight (x) 3 | . . 3 Average Overweight (x) . | . . . Largest Inventory Capacity 5 | 5 5 5 Average Capacity 5 | 5 5 5 Most Carried 5 | 4 5 5 Average Carried 3 | 2 4 4 Final Capacity 5 | 5 5 5 Final Carried 5 | 4 5 3 Class Distribution -------------------- 100% | Mutant Dominant Class ---------------- Mutant | -10/Materials Mutant | -10/Mines Resources | -11 -10 -10 ----------- Run | Yrd Mat Min Matter Collected 276 | 239 . 37 Remotely . | . . . Salvage Created 140 | . . 140 Parts 10 | . . 10 Haulers Intercepted . | . . . Recyclers Shooed 1 | . . 1 Parts Field Recycled . | . . . Retrieved Matter . | . . . Parts Self-Destructed . | . . . Prevented . | . . . Kills | -11 -10 -10 ------- Run | Yrd Mat Min Combat Hostiles Destroyed 5 | . . 5 Guns 5 | . . 5 Classes Destroyed 2 | . . 2 Swarmer 3 | . . 3 Grunt 2 | . . 2 Best Kill Streak 3 | . . 3 Combat Bots Only 3 | . . 3 Max Kills in Single Turn 1 | . . 1 Gunslinging . | . . . Exploded . | . . . Melee . | . . . Uniques/NPCs Destroyed . | . . . Combat | -11 -10 -10 -------- Run | Yrd Mat Min Hostile Shots Fired 43 | . 7 36 Missed 19 | . 3 16 Damage Taken 650 | . 56 594 Core 252 | . 18 234 Absorbed by Shields . | . . . Core Remaining (%) 100 | 100 . . Volleys Fired 14 | . . 14 Largest 2 | . . 2 Hottest 100 | . . 100 Shots Fired 26 | . . 26 Gun 26 | . . 26 Cannon . | . . . Launcher . | . . . Special . | . . . Kinetic . | . . . Thermal 26 | . . 26 Explosive . | . . . Electromagnetic . | . . . Robot Hit Streak 6 | . . 6 Robot Miss Streak 3 | . . 3 Penetration Max . | . . . Secondary Targets . | . . . Shots Hit Robots 16 | . . 16 Core Hits 8 | . . 8 Critical Kills . | . . . Critical Parts Destroyed . | . . . Critical Strikes 2 | . . 2 Burn 2 | . . 2 Melee Attacks . | . . . Impact . | . . . Slashing . | . . . Piercing . | . . . Sneak Attacks . | . . . Combat Hostiles . | . . . Follow-up Attacks . | . . . Damage Inflicted 200 | . . 200 Guns 200 | . . 200 Cannons . | . . . Explosions . | . . . Melee . | . . . Ramming . | . . . Kinetic . | . . . Thermal 200 | . . 200 Explosive . | . . . Electromagnetic . | . . . Impact . | . . . Slashing . | . . . Piercing . | . . . Highest Corruption . | . . . Average Corruption . | . . . Corruption Purged . | . . . Corruption Blocked . | . . . Overload Shots . | . . . Overflow Damage . | . . . Projectiles . | . . . Explosions . | . . . Melee . | . . . Knockbacks . | . . . Impact . | . . . Kinetic . | . . . Secondary . | . . . Self-Inflicted Damage . | . . . Shots . | . . . Rammed . | . . . Targets Rammed . | . . . Kicked . | . . . Crushed . | . . . Highest Temperature 153 | . . 153 Average Temperature 62 | . . 62 Received Heat Transfer 78 | . 30 48 Siege Activations . | . . . Robots Corrupted . | . . . Combat Hostiles . | . . . Parts Fried . | . . . Impact Corruptions . | . . . Robots Melted . | . . . Combat Hostiles . | . . . Parts Melted 1 | . . 1 Heat Transferred 740 | . . 740 Parts Sabotaged . | . . . Parts Stolen . | . . . Parts Stripped . | . . . Power Chain Reactions . | . . . Alert | -11 -10 -10 ------- Run | Yrd Mat Min Peak Influence 135 | . . 135 Initial . | . . . Average 73 | . . 101 Maximum Alert Level . | . . . Low Security (%) 100 | 100 100 100 Level 1 . | . . . Level 2 . | . . . Level 3 . | . . . Level 4 . | . . . Level 5 . | . . . High Security . | . . . Max Security . | . . . Squads Dispatched . | . . . Investigation . | . . . Extermination . | . . . Reinforcement . | . . . Assault . | . . . Garrison . | . . . Intercept . | . . . Searches Triggered . | . . . Construction Impeded . | . . . Haulers Reinforced . | . . . Active Scanning Responses . | . . . Cargo Convoy Interrupts . | . . . Stealth | -11 -10 -10 --------- Run | Yrd Mat Min Distress Signals 1 | . 1 . Communications Jammed . | . . . Distress Signals . | . . . Times Spotted 10 | . 3 7 Peak Tracking Total 3 | . 3 3 Tactical Retreats 1 | . . 1 Traps | -11 -10 -10 ------- Run | Yrd Mat Min Traps Triggered . | . . . Indirectly . | . . . Trap Hack Attempts . | . . . Triggered . | . . . Disarmed . | . . . Reprogrammed . | . . . Reused . | . . . Traps Extracted . | . . . Installed . | . . . Triggered . | . . . Machines | -11 -10 -10 ---------- Run | Yrd Mat Min Machines Disabled . | . . . Max in Single Turn . | . . . Machines Repaired . | . . . Machines Dismantled . | . . . Machines Sabotaged . | . . . Overloaded Fab Kills . | . . . Hacking | -11 -10 -10 --------- Run | Yrd Mat Min Machines Accessed . | . . . Terminals . | . . . Fabricators . | . . . Repair Stations . | . . . Recycling Units . | . . . Scanalyzers . | . . . Garrison Access . | . . . Total Hacks . | . . . Successful . | . . . Failed . | . . . Catastrophic . | . . . Database Lockouts . | . . . Manual . | . . . Terminals . | . . . Fabricators . | . . . Repair Stations . | . . . Recycling Units . | . . . Scanalyzers . | . . . Garrison Access . | . . . Terminal Hacks . | . . . Fabricator Hacks . | . . . Repair Station Hacks . | . . . Recycling Unit Hacks . | . . . Scanalyzer . | . . . Garrison Access Hacks . | . . . Unauthorized Hacks . | . . . Terminals . | . . . Fabricators . | . . . Repair Stations . | . . . Recycling Units . | . . . Scanalyzers . | . . . Garrison Access . | . . . Data Cores Recovered . | . . . Used . | . . . Hacking Detections . | . . . Full Trace Events . | . . . Feedback Events . | . . . Feedback Blocked . | . . . Robot Schematics Acquired . | . . . Robots Built . | . . . Authchips . | . . . Time . | . . . Total Robot Build Rating . | . . . Part Schematics Acquired . | . . . Parts Built . | . . . Authchips . | . . . Time . | . . . Total Part Build Rating . | . . . Parts Repaired . | . . . Time . | . . . Parts Recycled . | . . . Recycled Matter . | . . . Retrieved Matter . | . . . Retrieved Components . | . . . Parts Scanalyzed . | . . . Part Schematics Acquired . | . . . Parts Damaged . | . . . Bothacking | -11 -10 -10 ------------ Run | Yrd Mat Min Used RIF Installer . | . . . Robots Hacked . | . . . Non-combat . | . . . Combat . | . . . Robot Hacks Applied . | . . . Relay Couplers Released . | . . . Fabnet Peak Effective % . | . . . Robots Rewired . | . . . Allies Hacked . | . . . Hacks Repelled . | . . . Allies | -11 -10 -10 -------- Run | Yrd Mat Min Total Allies . | . . . Largest Group . | . . . Highest-Rated Group . | . . . Highest-Rated Ally . | . . . Total Orders . | . . . Ally Attacks . | . . . Total Damage . | . . . Kills . | . . . Allies Corrupted . | . . . Allies Melted . | . . . Intel | -11 -10 -10 ------- Run | Yrd Mat Min Robot Analysis Total . | . . . Derelict Logs Recovered . | . . . Drone Launches . | . . . Drone Recoveries . | . . . Exploration | -11 -10 -10 ------------- Run | Yrd Mat Min Turns Passed 500 | 93 48 359 Spaces Moved 302 | 68 40 194 Core 11 | 7 . 4 Treads . | . . . Legs 253 | 61 40 152 Wheels 38 | . . 38 Hover . | . . . Flight . | . . . Fastest Speed 50 | 50 120 80 Average Speed 114 | 112 120 113 Slowest Speed 200 | 120 120 200 Overloaded Moves . | . . . Propulsion Burnouts . | . . . Robots Hopped . | . . . Cave-ins Triggered . | . . . Exploration Rate (%) 18 | 5 16 34 Regions Visited 2 Branch Regions 1 Pre-discovered Areas . | . . . Known Exits Taken . | . . . Unknown Exits Taken 2 | 1 1 . Scrap Searched . | . . . Spaces Dug . | . . . Terrain Destroyed . | . . . Melee . | . . . Projectile . | . . . AOE . | . . . Terrain Rammed . | . . . Walls Destroyed . | . . . Machines Disabled . | . . . Actions | -11 -10 -10 --------- Run | Yrd Mat Min Total 431 | 85 40 306 Wait 89 | . . 89 Move 300 | 67 39 194 Hop . | . . . Pick Up 14 | 11 1 2 Fast Attach 1 | . . 1 Attach 8 | 5 . 3 Detach . | . . . Swap 2 | . . 2 Drop 3 | 2 . 1 Fire 14 | . . 14 Melee . | . . . Ram . | . . . Kick . | . . . Crush . | . . . Escape Stasis . | . . . Rewire . | . . . Trap . | . . . Miscellaneous . | . . . Route ------- -11/Scrapyard -10/Materials -10/Mines (discovered 1 exit: [*Mat]) History --------- Turn | Location | Event 10 | -11/Scrapyard | Discovered new exit (range 15) 94 | -11/Scrapyard | Entered Materials 115 | -10/Materials | Discovered new exit (range 16) 142 | -10/Materials | Entered Mines 174 | -10/Mines | Discovered new exit (range 12) 303 | -10/Mines | Build established: Mutant 413 | -10/Mines | Lost 3 parts (2n1w) 496 | -10/Mines | Core integrity fell below 50% 500 | -10/Mines | Core integrity fell below 20% 501 | -10/Mines | Destroyed by YI-UF0 with YI-UF0's Doublenader Last Messages --------------- G-34 Mercenary destroyed. Acquired Heat Sink. Acquired 10 matter. The unstable cave ceiling collapses. Aluminum Leg destroyed. The unstable cave ceiling collapses. U-05 Engineer destroyed. The unstable cave ceiling collapses. Acquired 4 matter. YI-UF0 mumbles something. K-01 Serf destroyed. YI-UF0: "WHAAM!" K-01 Serf destroyed. The unstable cave ceiling collapses. Acquired Wheel. Acquired 2 matter. Med. Laser destroyed. The unstable cave ceiling collapses. Med. Laser destroyed. YI-UF0 mumbles something. Map ----- +----------------------------------------------------+ | | | | | | | | | | | | | | | | | | | | | | | | | | | | | | | | | | | ?????????????????????????????????????????????????? | | ??????????????????####????????????####???????????? | | ????????????????### ########????## ###?????????? | | ????????????????# ##??## ####??????? | | ????????????????# ##?# ##?????? | | ???????????????## ### """ ##????? | | ??????????????## t """ #????? | | ?????????????## """ #????? | | ?????????????# @ ###### ##????? | | ?????????????# ### # ### #####?????? | | ?????????##### ##?# g ## #?????????? | | ?????????# ##?# ### = # #?????????? | | ?????????# #### #?##?# #?????????? | | ??????????????# #????# * # ###?????????? | | ??????????????## ##????# # # #???????????? | | ???????????????# #?????# ## #???????????? | | ???????????????# #?????## ## #???????????? | | ???????????????# #??????###### #???????????? | | ?????????#?????# #??????????## #???????????? | | ??###???? ?????# #??????????# ###?????????? | | ??# #?## ?????# #??????????# ##????????? | | ??# ## ?????# #####??????## ##???????? | | ??? ?????# #??????# # # # #????? | | ???# #?????###### #?###### = # | | ???# #??????????# ### ## = | | ??## #?????????##% < #### % | | ??# #????????## * ## # # % | | ??# =########## #### ### | | ???# *[%=% ### ##?? # # #[#??? | | ???### ==########## ##?###??? # # #? ?? | | ?????## ##????????## ##??????? ! ##????? | | ??????####??????????## #???????? !% # #?????? | | ?????????????????????# #???????? #* ?# ? #?????? | +----------------------------------------------------+ Best States ------------- Heat Dissipation 35 Energy Generation 14 Energy Capacity 160 Matter Stores 300 Matter Capacity 300 Sight Range 16 Terrain Scan Density 10 Evasion (%) 55 Item Schematics ----------------- None Robot Schematics ------------------ None Fabricated ------------ Nothing Alien Tech Used ----------------- None Achievements -------------- None Challenges ------------ None Game ------ Seed WaveInsulationRipper Manual? 0 Play Time 00:06:59 Cumulative 10.3 hours Start 2024.08.27 @ 02:47:13 End 2024.08.27 @ 02:51:27 Sessions 1 Manual Loads 0 Difficulty Rogue Special Mode None Game No. 13 Rogue 13 Adventurer 0 Explorer 0 Win Type - Total 0 Types 0/0/0/0/0/0/0/0/0 Lore% 4 Gallery% 18 Achievement% 15 Wizard Run 0 Options --------- Layout 1 ASCII 0 Keyboard 0 Movement Mouse Keybinds 0 Fullscreen 1 Font 32/SmallcapsGlow Map View 50x35 Zoom Use 0% Tactical HUD 0 Map Filters NONE Filters NONE Steam 1 RUN: 0d966a7c-0c39-438d-b187-6c46c05e7d9e